lending/lending_fUSD_20240120
["ID","MTS","AMOUNT","RATE_DAILY","PERIOD"]
[312277272,1705733457543,-500.0,0.00025205,2]
[312277273,1705733457553,-1679.55,0.00025205,2]
[312277274,1705733457562,-2596.85,0.00025205,2]
[312277275,1705733457571,-1106.11,0.00025205,2]
[312277276,1705733457580,-500.0,0.00025205,2]
[312277277,1705733457589,-500.0,0.00025205,2]
[312277278,1705733457598,-500.0,0.00025205,2]
[312277279,1705733457607,-500.0,0.00025205,2]
[312277280,1705733457617,-3165.56,0.00025205,2]
[312277281,1705733457626,-500.0,0.00025205,2]
[312277282,1705733457636,-500.0,0.00025205,2]
[312277283,1705733457649,-500.0,0.00025205,2]
[312277284,1705733457658,-500.0,0.00025205,2]
[312277285,1705733457668,-500.0,0.00025205,2]
[312277286,1705733457677,-500.0,0.00025205,2]
[312277287,1705733457686,-1260.98,0.00025205,2]
[312277288,1705733457696,-1023.9,0.00025205,2]
[312277289,1705733457705,-152.60235669,0.00025205,2]
[312277290,1705733457715,-661.53,0.00025205,2]
[312277291,1705733457726,-500.0,0.00025205,2]
[312277292,1705733457735,-500.0,0.00025205,2]
[312277293,1705733457744,-668.39,0.00025205,2]
[312277294,1705733457753,-500.0,0.00025205,2]
[312277295,1705733457762,-595.99223896,0.00025205,2]
[312277296,1705733457771,-500.0,0.00025205,2]
[312277297,1705733457780,-569.07,0.00025205,2]
[312277298,1705733457790,-500.0,0.00025205,2]
[312277299,1705733457799,-500.0,0.00025205,2]
[312277300,1705733457809,-500.0,0.00025205,2]
[312277301,1705733457818,-500.0,0.00025205,2]
[312277302,1705733457827,-500.0,0.00025205,2]
[312277303,1705733457836,-500.0,0.00025205,2]
[312277304,1705733457845,-1562.63,0.00025205,2]
[312277305,1705733457855,-6384.21,0.00025205,2]
[312277306,1705733457865,-500.0,0.00025205,2]
[312277307,1705733457874,-519.68,0.00025205,2]
[312277308,1705733457883,-951.65,0.00025205,2]
[312277309,1705733457893,-500.0,0.00025205,2]
[312277310,1705733457902,-4782.15,0.00025205,2]
[312277311,1705733457912,-500.0,0.00025205,2]
[312277312,1705733457920,-631.73,0.00025205,2]
[312277313,1705733457930,-860.34,0.00025205,2]
[312277314,1705733457939,-535.05773949,0.00025205,2]
[312277315,1705733457948,-500.0,0.00025205,2]
[312277316,1705733457957,-500.0,0.00025205,2]
[312277317,1705733457968,-500.0,0.00025205,2]
[312277318,1705733457977,-527.88,0.00025205,2]
[312277319,1705733457985,-500.0,0.00025205,2]
[312277320,1705733457995,-685.96,0.00025205,2]
[312277321,1705733458003,-563.81,0.00025205,2]
[312277322,1705733458012,-500.0,0.00025205,2]
[312277323,1705733458022,-500.0,0.00025205,2]
[312277324,1705733458032,-500.0,0.00025205,2]
[312277325,1705733458041,-500.0,0.00025205,2]
[312277326,1705733458050,-500.0,0.00025205,2]
[312277327,1705733458059,-500.0,0.00025205,2]
[312277328,1705733458069,-746.53,0.00025205,2]
[312277329,1705733458078,-500.0,0.00025205,2]
[312277330,1705733458087,-500.0,0.00025205,2]
[312277331,1705733458096,-500.0,0.00025205,2]
[312277332,1705733458106,-500.0,0.00025205,2]
[312277333,1705733458115,-597.23,0.00025205,2]
[312277334,1705733458125,-500.0,0.00025205,2]
[312277335,1705733458134,-500.0,0.00025205,2]
[312277336,1705733458143,-500.0,0.00025205,2]
[312277337,1705733458152,-500.0,0.00025205,2]
[312277338,1705733458162,-1213.86,0.00025205,2]
[312277339,1705733458171,-500.0,0.00025205,2]
[312277340,1705733458180,-500.0,0.00025205,2]
[312277341,1705733458189,-478.41485915,0.00025205,2]
[312277342,1705733458199,-500.0,0.00025205,2]
[312277343,1705733458209,-500.0,0.00025205,2]
[312277344,1705733458220,-500.0,0.00025205,2]
[312277345,1705733458230,-500.0,0.00025205,2]
[312277346,1705733458239,-158.52,0.00025215,2]
[312277347,1705733458248,-181.3003485,0.0002523,2]
[312277348,1705733458258,-1297.5708475,0.0002523,2]
[312277349,1705733458268,-160.77,0.00025247,2]
[312277350,1705733458277,-250.0,0.000253,2]
[312277351,1705733458286,-176.36,0.000253,2]
[312277352,1705733458296,-161.43,0.00025333,2]
[312277353,1705733458305,-171.23,0.0002535,2]
[312277354,1705733458314,-538.14334456,0.00025373,4]
[312277355,1705733458324,-187.70110686,0.00025373,4]
[312277356,1705733458333,-150.0,0.00025373,2]
[312277357,1705733458342,-150.0,0.00025373,2]
[312277358,1705733458351,-150.0,0.00025373,2]
[312277359,1705733458361,-150.0,0.00025373,2]
[312277360,1705733458370,-150.0,0.00025373,2]
[312277361,1705733458378,-150.0,0.00025373,2]
[312277362,1705733458388,-150.0,0.00025373,2]
[312277363,1705733458397,-150.0,0.00025373,2]
[312277364,1705733458407,-150.0,0.00025373,2]
[312277365,1705733458416,-150.0,0.00025373,2]
[312277366,1705733458426,-152.94518978,0.00025378,2]
[312277367,1705733458435,-290.21821541,0.00025379,2]
[312277368,1705733458444,-841.0,0.000254,2]
[312277369,1705733458454,-538.14334456,0.00025401,4]
[312277370,1705733458465,-187.70110686,0.00025401,4]
[312277371,1705733458474,-150.0,0.00025428,4]
[312277372,1705733458483,-538.14334456,0.0002543,4]
[312277373,1705733458493,-187.70110686,0.0002543,4]
[312277374,1705733458503,-150.0,0.00025434,4]
[312277375,1705733458513,-150.0,0.00025438,4]
[312277376,1705733458522,-158.52,0.00025453,2]
[312277377,1705733458531,-162.4,0.00025455,2]
[312277378,1705733458541,-538.14334456,0.00025458,4]
[312277379,1705733458550,-187.70110686,0.00025458,4]
[312277380,1705733458560,-150.0,0.0002547,4]
[312277381,1705733458570,-841.29342351,0.00025473,2]
[312277382,1705733458579,-500.0,0.00025478,2]
[312277383,1705733458589,-500.0,0.00025478,2]
[312277384,1705733458598,-500.0,0.00025478,2]
[312277385,1705733458608,-500.0,0.00025478,2]
[312277386,1705733458618,-500.0,0.00025478,2]
[312277387,1705733458628,-500.0,0.00025478,2]
[312277388,1705733458638,-500.0,0.00025478,2]
[312277389,1705733458651,-500.0,0.00025478,2]
[312277390,1705733458661,-500.0,0.00025478,2]
[312277391,1705733458671,-598.97,0.00025478,2]
[312277392,1705733458682,-1067.69,0.00025478,2]
[312277393,1705733458692,-1296.88,0.00025478,2]
[312277394,1705733458701,-500.0,0.00025478,2]
[312277395,1705733458711,-500.0,0.00025478,2]
[312277396,1705733458722,-500.0,0.00025478,2]
[312277397,1705733458732,-500.0,0.00025478,2]
[312277398,1705733458742,-500.0,0.00025478,2]
[312277399,1705733458751,-636.83,0.00025478,2]
[312277400,1705733458761,-556.92,0.00025478,2]
[312277401,1705733458770,-500.0,0.00025478,2]
[312277402,1705733458780,-500.0,0.00025478,2]
[312277403,1705733458789,-500.0,0.00025478,2]
[312277404,1705733458799,-770.48,0.00025478,2]
[312277405,1705733458809,-500.0,0.00025478,2]
[312277406,1705733458818,-500.0,0.00025478,2]
[312277407,1705733458827,-500.0,0.00025478,2]
[312277408,1705733458837,-500.0,0.00025478,2]
[312277409,1705733458846,-500.0,0.00025478,2]
[312277410,1705733458855,-500.0,0.00025478,2]
[312277411,1705733458866,-500.0,0.00025478,2]
[312277412,1705733458875,-500.0,0.00025478,2]
[312277413,1705733458886,-652.74,0.00025478,2]
[312277414,1705733458896,-500.0,0.00025478,2]
[312277415,1705733458905,-1182.85,0.00025478,2]
[312277416,1705733458915,-641.38,0.00025478,2]
[312277417,1705733458924,-500.0,0.00025478,2]
[312277418,1705733458933,-500.0,0.00025478,2]
[312277419,1705733458943,-779.92,0.00025478,2]
[312277420,1705733458952,-760.56,0.00025478,2]
[312277421,1705733458961,-500.0,0.00025478,2]
[312277422,1705733458971,-500.0,0.00025478,2]
[312277423,1705733458981,-500.0,0.00025478,2]
[312277424,1705733458990,-500.0,0.00025478,2]
[312277425,1705733458999,-500.0,0.00025478,2]
[312277426,1705733459009,-500.0,0.00025478,2]
[312277427,1705733459018,-500.0,0.00025478,2]
[312277428,1705733459029,-500.0,0.00025478,2]
[312277429,1705733459039,-500.0,0.00025478,2]
[312277430,1705733459049,-500.0,0.00025478,2]
[312277431,1705733459058,-500.0,0.00025478,2]
[312277432,1705733459068,-500.0,0.00025478,2]
[312277433,1705733459078,-160.77,0.00025479,2]
[312277434,1705733459088,-500.0,0.00025479,2]
[312277435,1705733459098,-558.59335579,0.00025479,2]
[312277436,1705733459107,-371.52,0.00025479,2]
[312277437,1705733459116,-500.0,0.00025479,2]
[312277438,1705733459126,-500.0,0.00025479,2]
[312277439,1705733459135,-500.0,0.00025479,2]
[312277440,1705733459145,-500.0,0.00025479,2]
[312277441,1705733459155,-500.0,0.00025479,2]
[312277442,1705733459165,-500.0,0.00025479,2]
[312277443,1705733459174,-500.0,0.00025479,2]
[312277444,1705733459184,-357.24578532,0.00025479,2]
[312277445,1705733459194,-500.0,0.00025479,2]
[312277446,1705733459203,-500.0,0.00025479,2]
[312277447,1705733459212,-500.0,0.00025479,2]
[312277448,1705733459222,-500.0,0.00025479,2]
[312277449,1705733459231,-500.0,0.00025479,2]
[312277450,1705733459241,-500.0,0.00025479,2]
[312277451,1705733459250,-500.0,0.00025479,2]
[312277452,1705733459259,-500.0,0.00025479,2]
[312277453,1705733459269,-500.0,0.00025479,2]
[312277454,1705733459278,-500.0,0.00025479,2]
[312277455,1705733459287,-500.0,0.00025479,2]
[312277456,1705733459297,-500.0,0.00025479,2]
[312277457,1705733459306,-500.0,0.00025479,2]
[312277458,1705733459315,-500.0,0.00025479,2]
[312277459,1705733459325,-500.0,0.00025479,2]
[312277460,1705733459335,-500.0,0.00025479,2]
[312277461,1705733459345,-500.0,0.00025479,2]
[312277462,1705733459354,-500.0,0.00025479,2]
[312277463,1705733459364,-353.99454241,0.00025479,2]
[312277464,1705733459374,-500.0,0.00025479,2]
[312277465,1705733459384,-327.79141106,0.00025479,2]
[312277466,1705733459393,-517.76870855,0.00025479,2]
[312277467,1705733459404,-500.0,0.00025479,2]
[312277468,1705733459413,-500.0,0.00025479,2]
[312277469,1705733459422,-500.0,0.00025479,2]
[312277470,1705733459432,-500.0,0.00025479,2]
[312277471,1705733459442,-500.0,0.00025479,2]
[312277472,1705733459451,-500.0,0.00025479,2]
[312277473,1705733459462,-500.0,0.00025479,2]
[312277474,1705733459472,-500.0,0.00025479,2]
[312277475,1705733459482,-500.0,0.00025479,2]
[312277476,1705733459492,-500.0,0.00025479,2]
[312277477,1705733459501,-500.0,0.00025479,2]
[312277478,1705733459511,-500.0,0.00025479,2]
[312277479,1705733459522,-500.0,0.00025479,2]
[312277480,1705733459531,-500.0,0.00025479,2]
[312277481,1705733459541,-500.0,0.00025479,2]
[312277482,1705733459550,-500.0,0.00025479,2]
[312277483,1705733459562,-455.1367669,0.00025479,2]
[312277484,1705733459572,-500.0,0.00025479,2]
[312277485,1705733459582,-500.0,0.00025479,2]
[312277486,1705733459592,-500.0,0.00025479,2]
[312277487,1705733459602,-500.0,0.00025479,2]
[312277488,1705733459611,-248.68162683,0.00025479,2]
[312277489,1705733459622,-334.13078522,0.00025479,2]
[312277490,1705733459631,-500.0,0.00025479,2]
[312277491,1705733459643,-500.0,0.00025479,2]
[312277492,1705733459653,-150.0,0.00025479,2]
[312277493,1705733459662,-1486.38,0.00025479,2]
[312277494,1705733459671,-341.28092819,0.00025479,2]
[312277495,1705733459681,-500.0,0.00025479,2]
[312277496,1705733459690,-500.0,0.00025479,2]
[312277497,1705733459700,-206.67341293,0.00025479,2]
[312277498,1705733459709,-205.07409248,0.00025479,2]
[312277499,1705733459722,-500.0,0.00025479,2]
[312277500,1705733459731,-500.0,0.00025479,2]
[312277501,1705733459740,-176.04718924,0.00025479,2]
[312277502,1705733459750,-500.0,0.00025479,2]
[312277503,1705733459760,-500.0,0.00025479,2]
[312277504,1705733459769,-500.0,0.00025479,2]
[312277505,1705733459779,-500.0,0.00025479,2]
[312277506,1705733459790,-500.0,0.00025479,2]
[312277507,1705733459799,-285.33206733,0.00025479,2]
[312277508,1705733459809,-500.0,0.00025479,2]
[312277509,1705733459819,-204.72048578,0.00025479,2]
[312277510,1705733459828,-500.0,0.00025479,2]
[312277511,1705733459838,-500.0,0.00025479,2]
[312277512,1705733459847,-500.0,0.00025479,2]
[312277513,1705733459857,-500.0,0.00025479,2]
[312277514,1705733459867,-500.0,0.00025479,2]
[312277515,1705733459876,-500.0,0.00025479,2]
[312277516,1705733459886,-452.40808099,0.00025479,2]
[312277517,1705733459895,-500.0,0.00025479,2]
[312277518,1705733459906,-372.85484934,0.00025479,2]
[312277519,1705733459916,-500.0,0.00025479,2]
[312277520,1705733459925,-1000.0,0.00025479,2]
[312277521,1705733459935,-500.0,0.00025479,2]
[312277522,1705733459945,-500.0,0.00025479,2]
[312277523,1705733459954,-500.0,0.00025479,2]
[312277524,1705733459964,-500.0,0.00025479,2]
[312277525,1705733459974,-500.0,0.00025479,2]
[312277526,1705733459984,-500.0,0.00025479,2]
[312277527,1705733459993,-351.49368821,0.00025479,2]
[312277528,1705733460003,-500.0,0.00025479,2]
[312277529,1705733460012,-500.0,0.00025479,2]
[312277530,1705733460022,-500.0,0.00025479,2]
[312277531,1705733460031,-500.0,0.00025479,2]
[312277532,1705733460041,-500.0,0.00025479,2]
[312277533,1705733460051,-630.15,0.00025479,2]
[312277534,1705733460061,-500.0,0.00025479,2]
[312277535,1705733460070,-623.31,0.00025479,2]
[312277536,1705733460081,-629.56,0.00025479,2]
[312277537,1705733460090,-469.97465725,0.00025479,2]
[312277538,1705733460100,-1946.47,0.00025479,2]
[312277539,1705733460109,-500.0,0.00025479,2]
[312277540,1705733460119,-501.25,0.00025479,2]
[312277541,1705733460128,-500.0,0.00025479,2]
[312277542,1705733460138,-500.0,0.00025479,2]
[312277543,1705733460147,-893.99,0.00025479,2]
[312277544,1705733460157,-479.20329305,0.00025479,5]
[312277545,1705733460166,-500.0,0.00025479,2]
[312277546,1705733460176,-500.0,0.00025479,2]
[312277547,1705733460186,-1655.52,0.00025479,2]
[312277548,1705733460196,-500.0,0.00025479,2]
[312277549,1705733460205,-1324.72,0.00025479,2]
[312277550,1705733460215,-500.0,0.00025479,2]
[312277551,1705733460224,-2343.96,0.00025479,2]
[312277552,1705733460234,-500.0,0.00025479,2]
[312277553,1705733460243,-500.0,0.00025479,2]
[312277554,1705733460253,-500.0,0.00025479,2]
[312277555,1705733460262,-309.70632965,0.00025479,2]
[312277556,1705733460272,-500.0,0.00025479,2]
[312277557,1705733460282,-908.17,0.00025479,2]
[312277558,1705733460291,-2620.88,0.00025479,2]
[312277559,1705733460301,-500.0,0.00025479,2]
[312277560,1705733460310,-500.0,0.00025479,2]
[312277561,1705733460319,-466.36364562,0.00025479,2]
[312277562,1705733460329,-1065.1,0.00025479,2]
[312277563,1705733460339,-1374.82,0.00025479,2]
[312277564,1705733460348,-500.0,0.00025479,2]
[312277565,1705733460357,-500.0,0.00025479,2]
[312277566,1705733460367,-500.0,0.00025479,2]
[312277567,1705733460377,-7169.98,0.00025479,2]
[312277568,1705733460386,-958.97,0.00025479,2]
[312277569,1705733460396,-500.0,0.00025479,2]
[312277570,1705733460405,-500.0,0.00025479,2]
[312277571,1705733460415,-847.7,0.00025479,2]
[312277572,1705733460425,-389.15922798,0.00025479,2]
[312277573,1705733460435,-555.3,0.00025479,2]
[312277574,1705733460617,-500.0,0.00025479,2]
[312277575,1705733460627,-570.86,0.00025479,2]
[312277576,1705733460638,-500.0,0.00025479,2]
[312277577,1705733460649,-500.0,0.00025479,2]
[312277578,1705733460659,-500.0,0.00025479,2]
[312277579,1705733460669,-500.0,0.00025479,2]
[312277580,1705733460679,-517.1,0.00025479,2]
[312277581,1705733460688,-500.0,0.00025479,2]
[312277582,1705733460697,-556.18,0.00025479,2]
[312277583,1705733460707,-500.0,0.00025479,2]
[312277584,1705733460719,-500.0,0.00025479,2]
[312277585,1705733460730,-574.38,0.00025479,2]
[312277586,1705733460739,-500.0,0.00025479,2]
[312277587,1705733460749,-1679.55,0.00025479,2]
[312277588,1705733460758,-2596.85,0.00025479,2]
[312277589,1705733460768,-1106.11,0.00025479,2]
[312277590,1705733460778,-500.0,0.00025479,2]
[312277591,1705733460788,-500.0,0.00025479,2]
[312277592,1705733460797,-500.0,0.00025479,2]
[312277593,1705733460807,-500.0,0.00025479,2]
[312277594,1705733460817,-3165.56,0.00025479,2]
[312277595,1705733460826,-500.0,0.00025479,2]
[312277596,1705733460835,-500.0,0.00025479,2]
[312277597,1705733460845,-500.0,0.00025479,2]
[312277598,1705733460854,-500.0,0.00025479,2]
[312277599,1705733460863,-500.0,0.00025479,2]
[312277600,1705733460872,-500.0,0.00025479,2]
[312277601,1705733460882,-1260.98,0.00025479,2]
[312277602,1705733460892,-1023.9,0.00025479,2]
[312277603,1705733460901,-661.53,0.00025479,2]
[312277604,1705733460910,-500.0,0.00025479,2]
[312277605,1705733460920,-500.0,0.00025479,2]
[312277606,1705733460929,-668.39,0.00025479,2]
[312277607,1705733460939,-500.0,0.00025479,2]
[312277608,1705733460948,-500.0,0.00025479,2]
[312277609,1705733460957,-569.07,0.00025479,2]
[312277610,1705733460966,-500.0,0.00025479,2]
[312277611,1705733460975,-500.0,0.00025479,2]
[312277612,1705733460986,-500.0,0.00025479,2]
[312277613,1705733460995,-500.0,0.00025479,2]
[312277614,1705733461005,-500.0,0.00025479,2]
[312277615,1705733461014,-500.0,0.00025479,2]
[312277616,1705733461024,-1562.63,0.00025479,2]
[312277617,1705733461033,-6384.21,0.00025479,2]
[312277618,1705733461043,-500.0,0.00025479,2]
[312277619,1705733461052,-519.68,0.00025479,2]
[312277620,1705733461061,-951.65,0.00025479,2]
[312277621,1705733461070,-500.0,0.00025479,2]
[312277622,1705733461080,-4782.15,0.00025479,2]
[312277623,1705733461089,-500.0,0.00025479,2]
[312277624,1705733461099,-631.73,0.00025479,2]
[312277625,1705733461108,-860.34,0.00025479,2]
[312277626,1705733461117,-500.0,0.00025479,2]
[312277627,1705733461127,-500.0,0.00025479,2]
[312277628,1705733461136,-500.0,0.00025479,2]
[312277629,1705733461145,-527.88,0.00025479,2]
[312277630,1705733461154,-500.0,0.00025479,2]
[312277631,1705733461163,-685.96,0.00025479,2]
[312277632,1705733461173,-563.81,0.00025479,2]
[312277633,1705733461182,-500.0,0.00025479,2]
[312277634,1705733461191,-500.0,0.00025479,2]
[312277635,1705733461200,-500.0,0.00025479,2]
[312277636,1705733461210,-500.0,0.00025479,2]
[312277637,1705733461219,-500.0,0.00025479,2]
[312277638,1705733461228,-591.98206697,0.00025479,2]
[312277639,1705733461238,-746.53,0.00025479,2]
[312277640,1705733461247,-500.0,0.00025479,2]
[312277641,1705733461256,-368.40437002,0.00025479,2]
[312277642,1705733461265,-500.0,0.00025479,2]
[312277643,1705733461274,-500.0,0.00025479,2]
[312277644,1705733461283,-597.23,0.00025479,2]
[312277645,1705733461292,-500.0,0.00025479,2]
[312277646,1705733461302,-500.0,0.00025479,2]
[312277647,1705733461311,-500.0,0.00025479,2]
[312277648,1705733461321,-500.0,0.00025479,2]
[312277649,1705733461330,-1213.86,0.00025479,2]
[312277650,1705733461340,-500.0,0.00025479,2]
[312277651,1705733461349,-500.0,0.00025479,2]
[312277652,1705733461359,-500.0,0.00025479,2]
[312277653,1705733461368,-500.0,0.00025479,2]
[312277654,1705733461377,-500.0,0.00025479,2]
[312277655,1705733461387,-150.0,0.00025483,4]
[312277656,1705733461396,-538.14334456,0.00025487,4]
[312277657,1705733461405,-187.70110686,0.00025487,4]
[312277658,1705733461414,-150.0,0.00025495,4]
[312277659,1705733461424,-307.18,0.00025496,2]
[312277660,1705733461433,-150.0,0.00025504,4]
[312277661,1705733461443,-538.14334456,0.00025515,4]
[312277662,1705733461452,-187.70110686,0.00025515,4]
[312277663,1705733461462,-2863.222089,0.00025521,2]
[312277664,1705733461472,-150.0,0.00025521,4]
[312277665,1705733461481,-150.0,0.00025538,4]
[312277666,1705733461491,-538.14334456,0.00025543,4]
[312277667,1705733461500,-187.70110686,0.00025543,4]
[312277668,1705733461511,-50000.0,0.00025544,2]
[312277669,1705733461520,-150.0,0.00025556,4]
[312277670,1705733461530,-150.0,0.00025567,4]
[312277671,1705733461540,-150.0,0.00025569,4]
[312277672,1705733461550,-150.57,0.0002557,2]
[312277673,1705733461560,-538.14334456,0.00025572,4]
[312277674,1705733461570,-187.70110686,0.00025572,4]
[312277675,1705733461582,-180.0,0.00025583,2]
[312277676,1705733461591,-150.0,0.00025594,4]
[312277677,1705733461601,-538.14334456,0.000256,4]
[312277678,1705733461614,-187.70110686,0.000256,4]
[312277679,1705733461623,-161.43,0.0002561,2]
[312277680,1705733461633,-500.0,0.00025616,2]
[312277681,1705733461647,-50000.0,0.00025617,2]
[312277682,1705733461657,-50000.0,0.00025617,2]
[312277683,1705733461667,-150.0,0.00025618,4]
[312277684,1705733461677,-538.14334456,0.00025629,4]
[312277685,1705733461689,-187.70110686,0.00025629,4]
[312277686,1705733461699,-150.0,0.00025635,4]
[312277687,1705733461709,-150.0,0.00025649,4]
[312277688,1705733461719,-1517.6151655,0.00025653,2]
[312277689,1705733461729,-254.72872978,0.00025653,2]
[312277690,1705733461739,-3534.23871342,0.00025653,2]
[312277691,1705733461750,-538.14334456,0.00025657,4]
[312277692,1705733461759,-187.70110686,0.00025657,4]
[312277693,1705733461769,-150.0,0.00025664,4]
[312277694,1705733461778,-150.0,0.00025669,4]
[312277695,1705733461787,-150.0,0.00025679,4]
[312277696,1705733461796,-538.14334456,0.00025686,4]
[312277697,1705733461806,-187.70110686,0.00025686,4]
[312277698,1705733461815,-158.52,0.00025691,2]
[312277699,1705733461825,-500.0,0.00025698,2]
[312277700,1705733461834,-43536.24108013,0.000257,2]
[312277701,1705733461843,-150.0,0.000257,4]
[312277702,1705733461853,-150.0,0.00025704,4]
[312277703,1705733461864,-160.77,0.0002571,2]
[312277704,1705733461874,-538.14334456,0.00025714,4]
[312277705,1705733461886,-187.70110686,0.00025714,4]
[312277706,1705733461896,-150.0,0.0002574,4]
[312277707,1705733461905,-538.14334456,0.00025743,4]
[312277708,1705733461914,-187.70110686,0.00025743,4]
[312277709,1705733461924,-500.0,0.00025752,2]
[312277710,1705733461933,-315.9899061,0.00025752,2]
[312277711,1705733461943,-500.0,0.00025752,2]
[312277712,1705733461952,-500.0,0.00025752,2]
[312277713,1705733461961,-500.0,0.00025752,2]
[312277714,1705733461971,-500.0,0.00025752,2]
[312277715,1705733461981,-500.0,0.00025752,2]
[312277716,1705733461990,-500.0,0.00025752,2]
[312277717,1705733462000,-598.97,0.00025752,2]
[312277718,1705733462009,-1296.88,0.00025752,2]
[312277719,1705733462019,-1067.69,0.00025752,2]
[312277720,1705733462028,-500.0,0.00025752,2]
[312277721,1705733462037,-500.0,0.00025752,2]
[312277722,1705733462047,-500.0,0.00025752,2]
[312277723,1705733462056,-500.0,0.00025752,2]
[312277724,1705733462065,-636.83,0.00025752,2]
[312277725,1705733462074,-500.0,0.00025752,2]
[312277726,1705733462084,-500.0,0.00025752,2]
[312277727,1705733462093,-556.92,0.00025752,2]
[312277728,1705733462103,-500.0,0.00025752,2]
[312277729,1705733462112,-770.48,0.00025752,2]
[312277730,1705733462123,-500.0,0.00025752,2]
[312277731,1705733462133,-500.0,0.00025752,2]
[312277732,1705733462142,-500.0,0.00025752,2]
[312277733,1705733462153,-500.0,0.00025752,2]
[312277734,1705733462162,-500.0,0.00025752,2]
[312277735,1705733462171,-500.0,0.00025752,2]
[312277736,1705733462180,-500.0,0.00025752,2]
[312277737,1705733462189,-500.0,0.00025752,2]
[312277738,1705733462198,-652.74,0.00025752,2]
[312277739,1705733462208,-500.0,0.00025752,2]
[312277740,1705733462217,-1182.85,0.00025752,2]
[312277741,1705733462226,-641.38,0.00025752,2]
[312277742,1705733462236,-500.0,0.00025752,2]
[312277743,1705733462245,-500.0,0.00025752,2]
[312277744,1705733462255,-779.92,0.00025752,2]
[312277745,1705733462266,-760.56,0.00025752,2]
[312277746,1705733462275,-500.0,0.00025752,2]
[312277747,1705733462285,-270.24520237,0.00025752,2]
[312277748,1705733462295,-500.0,0.00025752,2]
[312277749,1705733462304,-500.0,0.00025752,2]
[312277750,1705733462315,-500.0,0.00025752,2]
[312277751,1705733462325,-500.0,0.00025752,2]
[312277752,1705733462334,-500.0,0.00025752,2]
[312277753,1705733462344,-500.0,0.00025752,2]
[312277754,1705733462354,-500.0,0.00025752,2]
[312277755,1705733462364,-500.0,0.00025752,2]
[312277756,1705733462373,-500.0,0.00025752,2]
[312277757,1705733462383,-500.0,0.00025753,2]
[312277758,1705733462393,-371.52,0.00025753,2]
[312277759,1705733462403,-156.6955726,0.00025753,2]
[312277760,1705733462413,-500.0,0.00025753,2]
[312277761,1705733462423,-500.0,0.00025753,2]
[312277762,1705733462433,-500.0,0.00025753,2]
[312277763,1705733462443,-500.0,0.00025753,2]
[312277764,1705733462454,-500.0,0.00025753,2]
[312277765,1705733462465,-500.0,0.00025753,2]
[312277766,1705733462475,-500.0,0.00025753,2]
[312277767,1705733462484,-500.0,0.00025753,2]
[312277768,1705733462494,-588.06102499,0.00025753,2]
[312277769,1705733462504,-500.0,0.00025753,2]
[312277770,1705733462514,-500.0,0.00025753,2]
[312277771,1705733462524,-500.0,0.00025753,2]